bitfinex/quotes_BTCUSD_20241001
["timestamp","ask_amount","ask_price","bid_price","bid_amount"]
[1727808744252,0.01575689,62075.0,62074.0,0.161098]
[1727808744476,0.006,62078.0,62075.0,0.161094]
[1727808744891,0.39702747,62078.0,62061.0,0.41022429]
[1727808745114,0.161099,62074.0,62070.0,0.161108]
[1727808745321,0.003,62075.0,62066.0,0.322233]
[1727808745322,0.322204,62073.0,62066.0,0.322233]
[1727808745577,0.322222,62069.0,62058.0,0.000821]
[1727808745810,0.16111,62070.0,62066.0,0.161116]
[1727808746242,0.3175588,62073.0,62065.0,0.322237]
[1727808746448,0.1564578,62073.0,62065.0,0.322241]
[1727808746661,0.161104,62072.0,62067.0,0.32223]
[1727808746928,0.161103,62072.0,62069.0,0.16111]
[1727808747363,0.161103,62072.0,62066.0,0.322235]
[1727808747574,0.1564578,62073.0,62067.0,0.322229]
[1727808747801,0.1674578,62073.0,62066.0,0.322235]
[1727808748018,0.161104,62072.0,62068.0,0.161112]
[1727808748653,0.166104,62072.0,62068.0,0.161112]
[1727808749532,0.007,62072.0,62067.0,0.322228]
[1727808749745,0.002,62072.0,62067.0,0.322228]
[1727808749975,0.07492135,62072.0,62067.0,0.322228]
[1727808750186,0.005,62072.0,62070.0,0.161107]
[1727808750397,0.005,62072.0,62069.0,0.323041]
[1727808750696,0.002,62072.0,62071.0,0.483315]
[1727808751078,0.007,62072.0,62071.0,0.483315]
[1727808751545,0.002,62072.0,62071.0,0.483315]
[1727808751766,0.003,62072.0,62071.0,0.483315]
[1727808751990,0.001,62072.0,62071.0,0.483315]
[1727808752865,0.003,62072.0,62071.0,0.483315]
[1727808753337,0.001,62072.0,62071.0,0.483315]
[1727808753564,0.24056967,62078.0,62069.0,0.00082]
[1727808753783,0.01452352,62072.0,62071.0,0.161105]
[1727808753990,0.21273217,62077.0,62069.0,0.00082]
[1727808754201,0.161096,62075.0,62070.0,0.322214]
[1727808754442,0.161096,62075.0,62069.0,0.00082]
[1727808754443,0.1564578,62075.0,62074.0,0.161097]
[1727808754870,0.1564578,62075.0,62071.0,0.322211]
[1727808755078,0.1564578,62075.0,62073.0,0.1611]
[1727808755510,0.1684578,62075.0,62069.0,0.323041]
[1727808755736,0.1684578,62075.0,62071.0,0.161104]
[1727808755737,0.161099,62074.0,62071.0,0.161104]
[1727808755949,0.1684578,62075.0,62071.0,0.161104]
[1727808755950,0.006,62072.0,62071.0,0.322209]
[1727808756364,0.006,62072.0,62071.0,0.483314]
[1727808756771,0.24056967,62078.0,62073.0,0.322198]
[1727808757030,0.012,62075.0,62074.0,0.161097]
[1727808757240,0.012,62075.0,62069.0,0.323039]
[1727808757241,0.021,62075.0,62072.0,0.161102]
[1727808757450,0.009,62075.0,62073.0,0.161099]
[1727808757660,0.009,62075.0,62072.0,0.322205]
[1727808757661,0.009,62075.0,62072.0,0.161102]
[1727808757872,0.1611,62074.0,62069.0,0.00082]
[1727808758136,0.161108,62070.0,62069.0,0.00082]
[1727808758402,0.161108,62070.0,62055.0,0.24056967]
[1727808758403,0.322241,62066.0,62055.0,0.24056967]
[1727808758659,0.1564578,62065.0,62055.0,0.24056967]
[1727808758908,0.1564578,62065.0,62047.0,0.32276967]
[1727808758909,0.161136,62059.0,62047.0,0.32276967]
[1727808759135,0.322264,62061.0,62050.0,0.323136]
[1727808759353,0.17562374,62059.0,62051.0,0.161157]
[1727808759566,0.161136,62059.0,62051.0,0.161157]
[1727808759786,0.3288825,62059.0,62051.0,0.161157]
[1727808760000,0.3288825,62059.0,62050.0,0.00082]
[1727808760223,0.44855125,62059.0,62050.0,0.00082]
[1727808760448,0.76952092,62059.0,62050.0,0.00082]
[1727808760669,0.1,62058.0,62050.0,0.00082]
[1727808760967,0.161157,62051.0,62050.0,0.00082]
[1727808761198,0.36293198,62051.0,62050.0,0.00082]
[1727808761420,0.37185938,62051.0,62050.0,0.00082]
[1727808761887,0.70648078,62051.0,62050.0,0.00182]
[1727808762111,0.80648078,62051.0,62050.0,0.00182]
[1727808762340,0.90468078,62051.0,62050.0,0.00182]
[1727808762561,0.99558078,62051.0,62050.0,0.00182]
[1727808763502,0.99558078,62051.0,62050.0,0.00082]
[1727808763936,1.00958078,62051.0,62050.0,0.00182]
[1727808764599,1.00958078,62051.0,62050.0,0.00082]
[1727808764600,0.99558078,62051.0,62050.0,0.00082]
[1727808764854,0.99658078,62051.0,62050.0,0.00082]
[1727808765056,1.01058078,62051.0,62050.0,0.00082]
[1727808765269,1.00917012,62051.0,62050.0,0.00082]
[1727808765693,1.01117012,62051.0,62050.0,0.00082]
[1727808766330,2.28907012,62051.0,62050.0,0.00082]
[1727808766559,0.002,62047.0,62040.0,0.00082]
[1727808766788,1.8296258,62047.0,62040.0,0.00082]
[1727808767011,0.273183,62041.0,62040.0,0.00082]
[1727808767225,0.4455652,62041.0,62040.0,0.00082]
[1727808767448,0.4685652,62041.0,62040.0,0.00082]
[1727808767664,0.62501198,62041.0,62040.0,0.00082]
[1727808768336,0.63200014,62041.0,62040.0,0.00082]
[1727808768551,0.005,62036.0,62024.0,0.24056967]
[1727808768782,0.161225,62025.0,62024.0,0.24056967]
[1727808769015,0.16733277,62025.0,62024.0,0.24056967]
[1727808769234,0.01087497,62025.0,62024.0,0.161227]
[1727808769447,0.01087497,62025.0,62022.0,0.0198787]
[1727808769657,0.50177767,62032.0,62024.0,0.161227]
[1727808769875,0.1564578,62031.0,62025.0,0.161223]
[1727808770112,0.1564578,62031.0,62022.0,0.0198787]
[1727808770113,0.16733101,62031.0,62022.0,0.0198787]
[1727808770332,0.16733101,62031.0,62024.0,0.005]
[1727808770333,0.166342,62031.0,62024.0,0.005]
[1727808770541,0.166342,62031.0,62026.0,0.005]
[1727808770751,0.01087321,62031.0,62026.0,0.005]
[1727808770959,0.01087321,62031.0,62030.0,0.005]
[1727808771172,1.2779,62035.0,62030.0,0.005]
[1727808771406,0.3176598,62034.0,62030.0,0.005]
[1727808771615,0.012,62032.0,62030.0,0.005]
[1727808772058,0.012,62032.0,62031.0,0.242509]
[1727808772283,0.012,62032.0,62031.0,0.0813]
[1727808772872,0.004,62032.0,62031.0,0.0813]
[1727808773080,0.01088552,62032.0,62031.0,0.242509]
[1727808773447,0.008,62035.0,62034.0,0.005]
[1727808773672,0.71286967,62046.0,62034.0,0.005]
[1727808773900,0.24056967,62037.0,62034.0,0.005]
[1727808774177,0.161186,62040.0,62034.0,0.005]
[1727808774446,0.161192,62038.0,62034.0,0.005]
[1727808774667,0.168199,62035.0,62034.0,0.005]
[1727808775086,0.007,62035.0,62034.0,0.005]
[1727808775536,0.168199,62035.0,62034.0,0.005]
[1727808775758,0.007,62035.0,62034.0,0.005]
[1727808775976,0.322389,62037.0,62034.0,0.005]
[1727808776219,0.161196,62036.0,62034.0,0.005]
[1727808776640,0.41599838,62035.0,62032.0,0.005]
[1727808776856,0.161195,62037.0,62033.0,0.005]
[1727808777063,0.007,62035.0,62033.0,0.005]
[1727808777269,0.3246568,62035.0,62034.0,0.005]
[1727808777472,0.3176568,62035.0,62034.0,0.005]
[1727808777676,0.31589515,62035.0,62034.0,0.005]
[1727808777879,0.1704578,62035.0,62034.0,0.166101]
[1727808778098,0.008,62035.0,62034.0,0.166101]
[1727808778304,0.015,62035.0,62034.0,0.166101]
[1727808778736,0.01888552,62035.0,62034.0,0.166101]
[1727808778940,0.02788552,62035.0,62034.0,0.166101]
[1727808779162,0.01888552,62035.0,62034.0,0.166101]
[1727808779782,0.02888552,62035.0,62034.0,0.166101]
[1727808780418,0.01888552,62035.0,62034.0,0.0049]
[1727808780607,0.01888552,62035.0,62034.0,0.166101]
[1727808780816,0.02788552,62035.0,62034.0,0.166101]
[1727808781042,0.02788552,62035.0,62034.0,0.0049]
[1727808781270,0.01088552,62035.0,62034.0,0.166101]
[1727808781480,0.01088552,62035.0,62034.0,0.249301]
[1727808781733,0.017,62035.0,62034.0,0.249301]
[1727808782399,0.017,62035.0,62032.0,0.0049]
[1727808782400,0.025,62035.0,62032.0,0.0049]
[1727808782619,0.025,62035.0,62026.0,0.0049]
[1727808782620,0.161219,62028.0,62026.0,0.0049]
[1727808782829,0.322419,62031.0,62024.0,0.0049]
[1727808783041,0.161217,62028.0,62027.0,0.0049]
[1727808783247,0.322433,62029.0,62021.0,0.0785]
[1727808783474,0.32243,62029.0,62021.0,0.0785]
[1727808783720,0.322434,62029.0,62021.0,0.0785]
[1727808783940,0.1564578,62030.0,62023.0,0.322459]
[1727808784211,0.161218,62028.0,62023.0,0.161229]
[1727808784435,0.004,62028.0,62021.0,0.0785]
[1727808784648,0.1564578,62027.0,62021.0,0.0785]
[1727808784863,0.004,62028.0,62024.0,0.161226]
[1727808785063,0.1604578,62028.0,62022.0,0.161231]
[1727808785270,0.161223,62026.0,62022.0,0.161231]
[1727808785482,0.161223,62026.0,62021.0,0.0785]
[1727808785483,0.322448,62026.0,62021.0,0.0785]
[1727808785721,0.161222,62027.0,62021.0,0.239734]
[1727808785939,0.161223,62026.0,62022.0,0.161232]
[1727808786155,0.002,62027.0,62021.0,0.0785]
[1727808786369,0.161223,62026.0,62022.0,0.161231]
[1727808786576,0.161223,62026.0,62021.0,0.0785]
[1727808786785,0.161223,62026.0,62021.0,0.239735]
[1727808786993,0.002,62027.0,62021.0,0.239735]
[1727808786994,0.002,62027.0,62021.0,0.079321]
[1727808787200,0.161221,62027.0,62022.0,0.483695]
[1727808787410,0.161221,62027.0,62023.0,0.16123]
[1727808787626,0.162223,62026.0,62021.0,0.240554]
[1727808787852,0.161233,62022.0,62021.0,0.000821]
[1727808788122,0.48977784,62025.0,62021.0,0.000821]
[1727808788331,0.0108718,62022.0,62021.0,0.000721]
[1727808788761,0.16123,62023.0,62021.0,0.000721]
[1727808788955,0.0108718,62022.0,62021.0,0.000721]
[1727808789166,0.1721048,62022.0,62021.0,0.000721]
[1727808789396,0.3176908,62022.0,62021.0,0.000721]
[1727808789607,0.3285626,62022.0,62021.0,0.000721]
[1727808790865,0.3295626,62022.0,62021.0,0.000721]
[1727808791111,0.1683296,62022.0,62021.0,0.000721]
[1727808791336,0.0118718,62022.0,62021.0,0.000721]
[1727808791545,0.0118718,62022.0,62021.0,0.239856]
[1727808791751,0.0138718,62022.0,62021.0,0.239856]
[1727808792029,0.0118718,62022.0,62021.0,0.239856]
[1727808792236,0.0158718,62022.0,62021.0,0.239856]
[1727808792443,0.0188718,62022.0,62021.0,0.239856]
[1727808792653,0.003,62022.0,62021.0,0.239856]
[1727808793073,0.003,62022.0,62021.0,0.5744774]
[1727808793300,0.322399,62035.0,62027.0,0.322439]
[1727808793502,0.24056967,62025.0,62024.0,0.161227]
[1727808793709,0.01081113,62032.0,62021.0,0.5070424]
[1727808793918,0.161211,62031.0,62027.0,0.161219]
[1727808794124,0.322417,62032.0,62023.0,0.322458]
[1727808794343,0.161208,62032.0,62024.0,0.322455]
[1727808794604,0.81272534,62033.0,62028.0,0.161216]
[1727808794817,0.009,62033.0,62032.0,0.161207]
[1727808795023,0.009,62033.0,62030.0,0.161211]
[1727808795234,0.001,62031.0,62030.0,0.161212]
[1727808795438,0.009,62033.0,62030.0,0.161212]
[1727808795439,0.01,62033.0,62030.0,0.161212]
[1727808795663,0.33206797,62033.0,62023.0,0.322459]
[1727808795927,0.33206797,62033.0,62021.0,0.078621]
[1727808795928,0.4788758,62032.0,62021.0,0.078621]
[1727808796131,0.161215,62029.0,62025.0,0.161223]
[1727808796337,0.1564578,62032.0,62024.0,0.322453]
[1727808796574,0.24056967,62031.0,62024.0,0.322453]
[1727808796787,0.24056967,62031.0,62025.0,0.32245]
[1727808796788,0.1564578,62031.0,62025.0,0.32245]
[1727808797004,0.003,62033.0,62031.0,0.161209]
[1727808797005,0.003,62032.0,62031.0,0.161209]
[1727808797263,0.003,62032.0,62029.0,0.161213]
[1727808797483,0.003,62032.0,62030.0,0.161212]
[1727808797740,0.003,62032.0,62021.0,0.078621]
[1727808797741,0.003,62032.0,62025.0,0.322449]
[1727808798001,0.002,62031.0,62030.0,0.161209]
[1727808798526,0.161196,62037.0,62030.0,0.322423]
[1727808798749,0.1564578,62036.0,62030.0,0.000821]
[1727808799003,0.162841,62035.0,62031.0,0.161209]
[1727808799238,0.162841,62035.0,62030.0,0.000821]
[1727808799239,0.164209,62032.0,62030.0,0.000821]
[1727808799458,0.3206668,62031.0,62030.0,0.000821]
[1727808799697,0.45711273,62031.0,62030.0,0.000821]
[1727808799928,0.3176668,62031.0,62030.0,0.000821]
[1727808800149,0.1564578,62031.0,62030.0,0.000821]
[1727808800837,0.006642,62035.0,62030.0,0.000821]
[1727808801068,0.1564578,62034.0,62030.0,0.162031]
[1727808801277,0.006642,62035.0,62032.0,0.161206]
[1727808801521,0.001642,62035.0,62030.0,0.000821]
[1727808801728,0.003,62031.0,62030.0,0.000821]
[1727808801939,0.003,62031.0,62030.0,0.162033]
[1727808802384,0.166842,62035.0,62031.0,0.161209]
[1727808802584,0.166842,62035.0,62030.0,0.000821]
[1727808802585,0.161202,62034.0,62030.0,0.000821]
[1727808802792,0.01084541,62031.0,62030.0,0.162032]
[1727808803004,0.161202,62034.0,62030.0,0.162032]
[1727808803219,0.01084366,62033.0,62030.0,0.162032]
[1727808803448,0.01184541,62031.0,62030.0,0.162032]
[1727808803731,0.001,62031.0,62030.0,0.162032]
[1727808803938,0.01184541,62031.0,62030.0,0.162032]
[1727808804146,0.001,62031.0,62030.0,0.162032]
[1727808804399,0.01184541,62031.0,62030.0,0.162032]
[1727808804614,0.45786845,62031.0,62030.0,0.000821]
[1727808804824,0.41026808,62031.0,62030.0,0.000821]
[1727808805078,0.86552436,62031.0,62030.0,0.000821]
[1727808805299,0.87396139,62031.0,62030.0,0.000821]
[1727808805512,1.06864297,62031.0,62030.0,0.000821]
[1727808805718,0.76458292,62031.0,62030.0,0.000821]
[1727808805920,0.62188145,62031.0,62030.0,0.000821]
[1727808806372,0.62088145,62031.0,62030.0,0.000821]
[1727808806580,0.71278073,62031.0,62030.0,0.000821]
[1727808806787,0.574001,62031.0,62030.0,0.000821]
[1727808806979,0.73044778,62031.0,62030.0,0.000821]
[1727808807131,0.73144778,62031.0,62030.0,0.000821]
[1727808807563,0.73044778,62031.0,62030.0,0.000821]
[1727808807762,0.73844778,62031.0,62030.0,0.000821]
[1727808807938,0.73344778,62031.0,62030.0,0.000821]
[1727808808147,0.72544778,62031.0,62030.0,0.000821]
[1727808808343,0.74144778,62031.0,62030.0,0.000821]
[1727808808776,0.73244778,62031.0,62030.0,0.000821]
[1727808809207,0.74044778,62031.0,62030.0,0.000821]
[1727808809639,0.584001,62031.0,62030.0,0.000821]
[1727808810950,0.72776539,62031.0,62030.0,0.000821]
[1727808811582,0.584001,62031.0,62030.0,0.000821]
[1727808813306,0.72776539,62031.0,62030.0,0.000821]
[1727808813545,0.584001,62031.0,62030.0,0.000821]
[1727808814760,0.60926909,62031.0,62030.0,0.000821]
[1727808815005,0.74473276,62031.0,62030.0,0.000821]
[1727808815253,0.74472308,62031.0,62030.0,0.000821]
[1727808815722,0.71945499,62031.0,62030.0,0.000821]
[1727808815934,0.71945499,62031.0,62030.0,0.000721]
[1727808816575,0.8632468,62031.0,62030.0,0.000721]
[1727808816782,0.77131653,62031.0,62030.0,0.000721]
[1727808817229,0.86323723,62031.0,62030.0,0.000721]
[1727808818180,0.72777356,62031.0,62030.0,0.000721]
[1727808818403,0.63584397,62031.0,62030.0,0.000721]
[1727808818626,0.63640076,62031.0,62021.0,0.000721]
[1727808818868,0.161233,62022.0,62021.0,0.000721]
[1727808819170,0.55816991,62022.0,62021.0,0.000721]
[1727808819409,0.70367268,62022.0,62021.0,0.000721]
[1727808819643,0.56899754,62022.0,62021.0,0.000721]
[1727808820111,0.71267098,62022.0,62021.0,0.000721]
[1727808820394,0.5942678,62022.0,62021.0,0.000721]
[1727808820654,0.71267098,62022.0,62021.0,0.000721]
[1727808820878,0.56899754,62022.0,62021.0,0.000721]
[1727808821327,0.56899754,62022.0,62021.0,0.001721]
[1727808822399,0.72544432,62022.0,62021.0,0.001721]
[1727808823468,0.75071495,62022.0,62021.0,0.001721]
[1727808823686,0.75432416,62022.0,62021.0,0.001721]
[1727808824417,0.89636321,62022.0,62021.0,0.001721]
[1727808824629,0.89636321,62022.0,62021.0,0.000721]
[1727808824630,1.08718789,62022.0,62021.0,0.000721]
[1727808824845,1.08718789,62022.0,62021.0,0.001721]
[1727808825058,0.89635847,62022.0,62021.0,0.000721]
[1727808825295,0.8963665,62022.0,62021.0,0.000721]
[1727808825582,0.80760337,62022.0,62021.0,0.000721]
[1727808825791,1.14097374,62022.0,62021.0,0.000721]
[1727808826016,1.11570311,62022.0,62021.0,0.000721]
[1727808826232,1.11670311,62022.0,62021.0,0.000721]
[1727808826973,1.11870311,62022.0,62021.0,0.000721]
[1727808827412,1.11370311,62022.0,62021.0,0.000721]
[1727808827645,1.11970311,62022.0,62021.0,0.000721]
[1727808827860,1.12370311,62022.0,62021.0,0.000721]
[1727808828097,1.11770311,62022.0,62021.0,0.000721]
[1727808828320,1.07292351,62022.0,62021.0,0.000721]
[1727808828542,1.06992351,62022.0,62021.0,0.000721]
[1727808828962,1.09819661,62022.0,62021.0,0.000721]
[1727808829186,1.11019661,62022.0,62021.0,0.000721]
[1727808829412,0.161277,62005.0,62004.0,0.32386967]
[1727808829849,0.17564961,62005.0,62004.0,0.0833]
[1727808830086,0.17564961,62005.0,62000.0,4e-05]
[1727808830318,0.01437261,62005.0,62000.0,0.161329]
[1727808830613,0.01437261,62005.0,62000.0,0.161328]
[1727808830838,0.01537261,62005.0,62000.0,4e-05]
[1727808831079,0.01637261,62005.0,62000.0,4e-05]
[1727808831316,0.01537261,62005.0,62000.0,4e-05]
[1727808831537,0.01537261,62005.0,62000.0,0.161328]
[1727808831759,0.01737261,62005.0,62001.0,0.161287]
[1727808831988,0.01437261,62005.0,62000.0,4e-05]
[1727808832208,0.01537261,62005.0,62000.0,4e-05]
[1727808832655,0.17665061,62005.0,62000.0,0.161328]
[1727808832872,0.22067256,62005.0,62000.0,4e-05]
[1727808833108,0.22067256,62005.0,62000.0,0.161329]
[1727808833335,0.322565,62003.0,62000.0,4e-05]
[1727808833558,0.161287,62001.0,62000.0,4e-05]
[1727808833773,0.3177448,62001.0,62000.0,4e-05]
[1727808833988,0.37975879,62001.0,62000.0,4e-05]
[1727808834208,0.62032846,62001.0,62000.0,4e-05]
[1727808834480,0.33200301,62001.0,62000.0,4e-05]
[1727808834713,1.03212799,62001.0,62000.0,4e-05]
[1727808834918,0.91194777,62001.0,62000.0,4e-05]
[1727808835129,0.79155832,62001.0,62000.0,4e-05]
[1727808835351,1.0671983,62001.0,62000.0,4e-05]
[1727808835802,0.17071601,62001.0,62000.0,4e-05]
[1727808836014,0.37968424,62001.0,62000.0,4e-05]
[1727808836236,0.21839724,62001.0,62000.0,4e-05]
[1727808836460,0.17071601,62001.0,62000.0,4e-05]
[1727808836686,0.01425821,62001.0,62000.0,0.08034]
[1727808836900,0.0252755,62004.0,62000.0,0.08034]
[1727808837119,0.0252755,62004.0,62000.0,0.40292]
[1727808837341,0.0252755,62004.0,62003.0,0.161282]
[1727808837549,0.0252755,62004.0,62000.0,0.40292]
[1727808837975,0.0252755,62004.0,62003.0,0.161282]
[1727808838402,0.0382755,62004.0,62003.0,0.161282]
[1727808838610,0.013,62004.0,62003.0,0.161282]
[1727808838829,0.009,62004.0,62003.0,0.161282]
[1727808839037,0.322533,62010.0,62004.0,0.161278]
[1727808839247,0.39702747,62009.0,62003.0,0.322563]
[1727808839460,0.02121416,62008.0,62005.0,0.161275]
[1727808839673,0.1564578,62007.0,62006.0,0.161274]
[1727808839907,0.18653394,62012.0,62003.0,0.322561]
[1727808840131,0.18173274,62012.0,62011.0,0.161261]
[1727808840366,0.1564578,62012.0,62011.0,0.161261]
[1727808840584,0.24056967,62016.0,62008.0,0.22320452]
[1727808840585,0.04995,62010.0,62008.0,0.22320452]
[1727808840810,0.04995,62010.0,62009.0,0.239266]
[1727808841023,0.04995,62010.0,62009.0,0.078]
[1727808841462,0.04995,62010.0,62009.0,0.239266]
[1727808841680,0.04995,62010.0,62009.0,0.161266]
[1727808842236,0.28023148,62010.0,62009.0,0.001]
[1727808842346,0.11896748,62010.0,62009.0,0.001]
[1727808842565,0.3676718,62010.0,62009.0,0.001]
[1727808842776,0.3696718,62010.0,62009.0,0.001]
[1727808843008,0.5411193,62010.0,62009.0,0.001]
[1727808843226,0.5411193,62010.0,62000.0,4e-05]
[1727808843227,0.161287,62001.0,62000.0,4e-05]
[1727808843510,0.3177448,62001.0,62000.0,4e-05]
[1727808843722,0.36539019,62001.0,62000.0,4e-05]
[1727808843936,0.38921288,62001.0,62000.0,4e-05]
[1727808844160,0.54472522,62001.0,62000.0,4e-05]
[1727808844373,0.47325714,62001.0,62000.0,0.00104]
[1727808844803,0.71382681,62001.0,62000.0,4e-05]
[1727808845013,0.81211561,62001.0,62000.0,4e-05]
[1727808845256,0.58285714,62001.0,62000.0,4e-05]
[1727808845467,0.91419455,62001.0,62000.0,4e-05]
[1727808845681,2.09785291,62001.0,62000.0,4e-05]
[1727808845927,2.1066286,62001.0,62000.0,4e-05]
[1727808846672,2.20208449,62001.0,62000.0,4e-05]
[1727808846893,2.04657215,62001.0,62000.0,4e-05]
[1727808847113,2.04657215,62001.0,61987.0,0.000821]
[1727808847114,1.61134193,62001.0,61990.0,0.161315]
[1727808847314,0.161309,61993.0,61989.0,0.161317]
[1727808847589,0.1564578,61992.0,61989.0,0.161317]
[1727808847820,0.1564578,61992.0,61991.0,0.161313]
[1727808848035,0.1564578,61992.0,61989.0,0.322637]
[1727808848245,0.1564578,61992.0,61991.0,0.161313]
[1727808848457,0.1564578,61992.0,61988.0,0.322642]
[1727808848458,0.01402861,61991.0,61988.0,0.322642]
[1727808848693,0.39702747,61991.0,61987.0,0.000821]
[1727808848913,0.01402861,61990.0,61987.0,0.000821]
[1727808849129,0.01402861,61990.0,61989.0,0.161318]
[1727808849565,0.01402861,61990.0,61989.0,0.162139]
[1727808849809,0.1564578,61991.0,61990.0,0.161316]
[1727808850549,0.1584578,61991.0,61990.0,0.161316]
[1727808850759,0.1724873,61991.0,61990.0,0.161316]
[1727808850989,0.0160295,61991.0,61990.0,0.161316]
[1727808851217,0.44944802,62001.0,61996.0,0.1613]
[1727808851218,0.40185867,62001.0,61996.0,0.1613]
[1727808851436,0.40185867,62001.0,61992.0,0.322619]
[1727808851437,0.1564578,62000.0,61992.0,0.322619]
[1727808851679,0.17048553,62000.0,61998.0,0.161294]
[1727808851893,0.33177753,62000.0,61994.0,0.32261]
[1727808852108,0.26268187,61999.0,61993.0,0.322616]
[1727808852327,0.1564578,61998.0,61995.0,0.161303]
[1727808852530,0.1564578,61998.0,61993.0,0.483922]
[1727808852743,0.1564578,61998.0,61996.0,0.161299]
[1727808852966,0.1564578,61998.0,61997.0,0.161298]
[1727808853632,0.18173661,61998.0,61989.0,0.000821]
[1727808853873,0.02927881,61998.0,61994.0,0.0813]
[1727808854073,0.24056967,61997.0,61996.0,0.1613]
[1727808854283,0.161283,62003.0,61997.0,0.161296]
[1727808854495,0.009,61998.0,61997.0,0.161296]
[1727808854708,0.005,61998.0,61997.0,0.161296]
[1727808855197,0.161299,61997.0,61989.0,0.323456]
[1727808855479,0.1574578,61997.0,61989.0,0.000821]
[1727808855700,0.1574578,61997.0,61992.0,0.16131]
[1727808856114,0.24056967,61995.0,61989.0,0.000821]
[1727808856306,0.161311,61992.0,61989.0,0.000821]
[1727808856592,0.161316,61990.0,61989.0,0.000821]
[1727808856815,0.3177738,61990.0,61989.0,0.000821]
[1727808857259,0.18174003,61990.0,61989.0,0.000821]
[1727808857773,0.65371473,61990.0,61989.0,0.000821]
[1727808857984,0.261321,61988.0,61987.0,0.000821]
[1727808858209,0.41287632,61988.0,61987.0,0.000821]
[1727808858433,0.36527793,61988.0,61987.0,0.000821]
[1727808858652,0.3177788,61988.0,61987.0,0.000821]
[1727808858868,0.47422558,61988.0,61987.0,0.000821]
[1727808859351,0.36527793,61988.0,61987.0,0.000821]
[1727808859581,0.3177788,61988.0,61987.0,0.000821]
[1727808860026,0.36527793,61988.0,61987.0,0.000821]
[1727808860258,0.1634578,61988.0,61987.0,0.000821]
[1727808860485,0.3247788,61988.0,61987.0,0.000821]
[1727808860739,0.3307788,61988.0,61987.0,0.000821]
[1727808861173,0.1694578,61988.0,61987.0,0.000821]
[1727808861843,0.3307788,61988.0,61987.0,0.000821]
[1727808862059,0.1694578,61988.0,61981.0,0.161338]
[1727808862278,0.1564578,61987.0,61983.0,0.161333]
[1727808862973,0.3177818,61987.0,61982.0,0.161336]
[1727808863192,0.17594731,61986.0,61982.0,0.161336]
[1727808863419,0.33240511,61986.0,61982.0,0.161336]
[1727808863872,0.22326211,61985.0,61973.0,0.32272]
[1727808864097,0.1564578,61985.0,61973.0,0.32272]
[1727808864311,0.1564578,61985.0,61976.0,0.161351]
[1727808864312,0.161343,61980.0,61976.0,0.161351]
[1727808864523,0.161346,61979.0,61974.0,0.239556]
[1727808864738,0.17597887,61979.0,61975.0,0.161353]
[1727808864952,0.17597787,61979.0,61975.0,0.161353]
[1727808865187,0.03991795,61979.0,61974.0,0.0782]
[1727808865404,0.03991795,61979.0,61976.0,0.161351]
[1727808865619,0.10795672,61979.0,61974.0,0.0782]
[1727808865838,0.161348,61978.0,61974.0,0.239556]
[1727808866064,0.28048762,61979.0,61976.0,0.161352]
[1727808866065,0.03991795,61979.0,61976.0,0.161352]
[1727808866286,0.18663208,61979.0,61975.0,0.161353]
[1727808866516,0.01463287,61978.0,61975.0,0.161353]
[1727808866728,0.01463287,61978.0,61976.0,0.161352]
[1727808866914,0.01563287,61978.0,61975.0,0.161354]
[1727808867154,0.01563287,61978.0,61974.0,0.0782]
[1727808867404,0.01563287,61978.0,61976.0,0.161352]
[1727808867622,0.01563287,61978.0,61977.0,0.38455452]
[1727808868505,0.01563287,61978.0,61977.0,0.61821232]
[1727808868743,1.2779,61989.0,61978.0,0.0772]
[1727808868744,0.24056967,61987.0,61978.0,0.0772]
[1727808868975,0.24056967,61987.0,61986.0,0.46173052]
[1727808869463,1.2779,61989.0,61988.0,0.161321]
[1727808869683,0.04995,61990.0,61989.0,0.161318]
[1727808871840,0.04995,61990.0,61989.0,0.163318]
[1727808872050,0.04995,61990.0,61989.0,0.002]
[1727808872266,0.04995,61990.0,61989.0,0.163318]
[1727808872986,0.04995,61990.0,61989.0,0.002]
[1727808873199,0.04995,61990.0,61989.0,0.163318]
[1727808873439,0.07523112,61990.0,61989.0,0.002]
[1727808873660,0.07523112,61990.0,61989.0,0.163318]
[1727808874571,0.02528112,61990.0,61988.0,0.322643]
[1727808874789,0.02528112,61990.0,61989.0,0.161318]
[1727808875544,0.02692312,61990.0,61989.0,0.161318]
[1727808876035,0.02692312,61990.0,61988.0,0.001]
[1727808876268,0.02692312,61990.0,61988.0,0.16232]
[1727808876530,0.02692312,61990.0,61989.0,0.161318]
[1727808876765,0.02692312,61990.0,61989.0,0.001]
[1727808876766,0.18823912,61990.0,61989.0,0.001]
[1727808877030,0.39227035,61990.0,61989.0,0.001]
[1727808877285,0.39227035,61990.0,61987.0,0.000821]
[1727808877286,0.161321,61988.0,61987.0,0.000821]
[1727808877538,0.3177788,61988.0,61987.0,0.000821]
[1727808878305,0.33241688,61988.0,61987.0,0.000821]
[1727808878547,0.48401916,61988.0,61987.0,0.000821]
[1727808879076,0.33441688,61988.0,61987.0,0.000821]
[1727808879590,0.01663808,61988.0,61987.0,0.000821]
[1727808880102,0.04192004,61988.0,61987.0,0.162145]
[1727808880343,0.01663808,61988.0,61987.0,0.162145]
[1727808880598,0.002,61988.0,61987.0,0.162145]
[1727808884320,0.002,61988.0,61987.0,0.239845]
[1727808885586,0.001642,61990.0,61989.0,0.161318]
[1727808885880,0.001642,61990.0,61989.0,0.38452252]
[1727808886134,0.01627204,61990.0,61989.0,0.48102252]
[1727808886377,0.001642,61990.0,61989.0,0.48102252]
[1727808886894,0.001642,61990.0,61989.0,0.56112252]
[1727808888651,0.001642,61990.0,61989.0,0.56012252]
[1727808888906,0.07285943,62000.0,61989.0,0.48066232]
[1727808888907,0.02527995,62000.0,61989.0,0.48066232]
[1727808889196,0.24056967,62002.0,61996.0,0.56710452]